[Event "Titled Tuesday Blitz October 31 Late 2023"]
[White "Kornyukov, Alexey"]
[Black "reevecanada"]
[WhiteFideId "4150457"]
[WhiteElo "2295"]
[BlackElo "2657"]
[Result "1-0"]
[Round "2"]
[TimeControl "180+1"]
[Date "2023.10.31"]
[WhiteClock "0:00:55"]
[BlackClock "0:01:07"]
[Board "75"]

1. d4 {[%clk 0:03:00]}  c5 {[%clk 0:02:58]} 2. d5 {[%clk 0:02:58]}  d6 {[%clk 0:02:57]} 3. c4 {[%clk 0:02:58]}  Nd7 {[%clk 0:02:57]} 4. Nc3 {[%clk 0:02:58]}  Ngf6 {[%clk 0:02:57]} 5. e4 {[%clk 0:02:58]}  g6 {[%clk 0:02:56]} 6. f3 {[%clk 0:02:58]}  Bg7 {[%clk 0:02:57]} 7. Nh3 {[%clk 0:02:58]}  O-O {[%clk 0:02:57]} 8. Nf2 {[%clk 0:02:58]}  a6 {[%clk 0:02:58]} 9. a4 {[%clk 0:02:58]}  b6 {[%clk 0:02:56]} 10. Be2 {[%clk 0:02:57]}  Qc7 {[%clk 0:02:55]} 11. Bg5 {[%clk 0:02:54]}  e5 {[%clk 0:02:54]} 12. Qd2 {[%clk 0:02:49]}  Bb7 {[%clk 0:02:49]} 13. g4 {[%clk 0:02:40]}  Rfe8 {[%clk 0:02:46]} 14. h4 {[%clk 0:02:34]}  h5 {[%clk 0:02:45]} 15. Rg1 {[%clk 0:02:28]}  Kh7 {[%clk 0:02:43]} 16. Nh1 {[%clk 0:02:24]}  b5 {[%clk 0:02:38]} 17. cxb5 {[%clk 0:02:19]}  axb5 {[%clk 0:02:39]} 18. Nxb5 {[%clk 0:02:15]}  Qb6 {[%clk 0:02:38]} 19. Ng3 {[%clk 0:02:11]}  hxg4 {[%clk 0:02:29]} 20. fxg4 {[%clk 0:02:08]}  Ba6 {[%clk 0:02:29]} 21. h5 {[%clk 0:02:01]}  Bxb5 {[%clk 0:02:08]} 22. Bxb5 {[%clk 0:02:00]}  Qxb5 {[%clk 0:02:08]} 23. axb5 {[%clk 0:01:54]}  Rxa1+ {[%clk 0:02:07]} 24. Kf2 {[%clk 0:01:54]}  Nxg4+ {[%clk 0:02:06]} 25. Kg2 {[%clk 0:01:52]}  Rxg1+ {[%clk 0:02:00]} 26. Kxg1 {[%clk 0:01:53]}  f6 {[%clk 0:01:54]} 27. hxg6+ {[%clk 0:01:49]}  Kxg6 {[%clk 0:01:55]} 28. Be3 {[%clk 0:01:08]}  Nb6 {[%clk 0:01:43]} 29. Qe2 {[%clk 0:00:57]}  Nxe3 {[%clk 0:01:07]} 30. Qh5# {[%clk 0:00:55]} 1-0


[Site "https://www.chess.com"]

[Event "Titled Tuesday Blitz October 31 Late 2023"]
[White "Petersson, Kjell"]
[Black "Le, Quang Liem"]
[WhiteFideId "1705148"]
[BlackFideId "12401137"]
[WhiteElo "2162"]
[BlackElo "3047"]
[Result "0-1"]
[Round "2"]
[TimeControl "180+1"]
[Date "2023.10.31"]
[WhiteClock "0:00:07"]
[BlackClock "0:01:35"]
[Board "78"]

1. d4 {[%clk 0:03:00]}  Nf6 {[%clk 0:02:59]} 2. Bf4 {[%clk 0:03:01]}  b6 {[%clk 0:02:58]} 3. e3 {[%clk 0:03:00]}  Bb7 {[%clk 0:02:59]} 4. Nf3 {[%clk 0:03:00]}  Nh5 {[%clk 0:02:53]} 5. Bg3 {[%clk 0:02:56]}  d6 {[%clk 0:02:46]} 6. Bd3 {[%clk 0:02:51]}  Nd7 {[%clk 0:02:42]} 7. Nbd2 {[%clk 0:02:47]}  Nxg3 {[%clk 0:02:40]} 8. hxg3 {[%clk 0:02:46]}  g6 {[%clk 0:02:38]} 9. c3 {[%clk 0:02:43]}  Bg7 {[%clk 0:02:38]} 10. Qc2 {[%clk 0:02:39]}  c5 {[%clk 0:02:35]} 11. Ng5 {[%clk 0:02:24]}  e6 {[%clk 0:02:17]} 12. Nxf7 {[%clk 0:01:56]}  Kxf7 {[%clk 0:02:16]} 13. Rxh7 {[%clk 0:01:55]}  Qf6 {[%clk 0:02:08]} 14. Rxh8 {[%clk 0:01:36]}  Rxh8 {[%clk 0:02:09]} 15. O-O-O {[%clk 0:01:33]}  cxd4 {[%clk 0:02:09]} 16. exd4 {[%clk 0:01:29]}  Bxg2 {[%clk 0:02:07]} 17. f4 {[%clk 0:01:08]}  Bc6 {[%clk 0:01:57]} 18. Nc4 {[%clk 0:01:07]}  Bf8 {[%clk 0:01:49]} 19. g4 {[%clk 0:01:01]}  Qxf4+ {[%clk 0:01:48]} 20. Kb1 {[%clk 0:01:02]}  Kg7 {[%clk 0:01:46]} 21. Bxg6 {[%clk 0:01:00]}  Rh2 {[%clk 0:01:46]} 22. Qd3 {[%clk 0:00:56]}  Qxg4 {[%clk 0:01:38]} 23. Ne3 {[%clk 0:00:17]}  Qxg6 {[%clk 0:01:38]} 24. Qxg6+ {[%clk 0:00:16]}  Kxg6 {[%clk 0:01:39]} 25. Rg1+ {[%clk 0:00:16]}  Kf7 {[%clk 0:01:39]} 26. Rf1+ {[%clk 0:00:15]}  Ke7 {[%clk 0:01:39]} 27. Ng4 {[%clk 0:00:14]}  Rg2 {[%clk 0:01:39]} 28. Ne3 {[%clk 0:00:13]}  Re2 {[%clk 0:01:38]} 29. Nc4 {[%clk 0:00:07]}  Be4+ {[%clk 0:01:35]} 0-1


[Site "https://www.chess.com"]

[Event "Titled Tuesday Blitz October 31 Late 2023"]
[White "Rustemov, Alexander"]
[Black "Reprintsev, Alexander"]
[WhiteFideId "4119002"]
[BlackFideId "14100541"]
[WhiteElo "2867"]
[BlackElo "2498"]
[Result "1-0"]
[Round "2"]
[TimeControl "180+1"]
[Date "2023.10.31"]
[WhiteClock "0:00:15"]
[BlackClock "0:00:07"]
[Board "80"]

1. d4 {[%clk 0:02:57]}  d5 {[%clk 0:02:56]} 2. Nf3 {[%clk 0:02:58]}  Nc6 {[%clk 0:02:53]} 3. Bf4 {[%clk 0:02:57]}  Bg4 {[%clk 0:02:50]} 4. e3 {[%clk 0:02:57]}  e6 {[%clk 0:02:50]} 5. Be2 {[%clk 0:02:56]}  Bd6 {[%clk 0:02:44]} 6. Bg3 {[%clk 0:02:56]}  Nce7 {[%clk 0:02:41]} 7. c4 {[%clk 0:02:54]}  Nf6 {[%clk 0:02:35]} 8. Nc3 {[%clk 0:02:54]}  c6 {[%clk 0:02:33]} 9. O-O {[%clk 0:02:51]}  O-O {[%clk 0:02:29]} 10. Rc1 {[%clk 0:02:50]}  a6 {[%clk 0:02:18]} 11. Qc2 {[%clk 0:02:40]}  Bf5 {[%clk 0:01:54]} 12. Qb3 {[%clk 0:02:39]}  b5 {[%clk 0:01:50]} 13. Bxd6 {[%clk 0:02:38]}  Qxd6 {[%clk 0:01:49]} 14. cxd5 {[%clk 0:02:36]}  cxd5 {[%clk 0:01:49]} 15. Ne5 {[%clk 0:02:30]}  Rfc8 {[%clk 0:01:46]} 16. a3 {[%clk 0:02:29]}  Nd7 {[%clk 0:01:29]} 17. Nxd7 {[%clk 0:02:27]}  Qxd7 {[%clk 0:01:28]} 18. Na2 {[%clk 0:02:26]}  Ra7 {[%clk 0:01:21]} 19. Rxc8+ {[%clk 0:02:19]}  Qxc8 {[%clk 0:01:21]} 20. Rc1 {[%clk 0:02:19]}  Rc7 {[%clk 0:01:21]} 21. Rxc7 {[%clk 0:02:19]}  Qxc7 {[%clk 0:01:21]} 22. Qc3 {[%clk 0:02:20]}  Qxc3 {[%clk 0:01:12]} 23. Nxc3 {[%clk 0:02:20]}  Nc6 {[%clk 0:01:03]} 24. b4 {[%clk 0:02:20]}  Kf8 {[%clk 0:00:59]} 25. Kf1 {[%clk 0:02:17]}  Ke7 {[%clk 0:00:59]} 26. Ke1 {[%clk 0:02:18]}  f6 {[%clk 0:00:58]} 27. Kd2 {[%clk 0:02:16]}  Kd6 {[%clk 0:00:58]} 28. Na2 {[%clk 0:01:59]}  e5 {[%clk 0:00:55]} 29. Kc3 {[%clk 0:01:59]}  Bb1 {[%clk 0:00:52]} 30. Nc1 {[%clk 0:01:58]}  Bf5 {[%clk 0:00:52]} 31. Nb3 {[%clk 0:01:58]}  Bc8 {[%clk 0:00:50]} 32. Nc5 {[%clk 0:01:57]}  Nd8 {[%clk 0:00:48]} 33. a4 {[%clk 0:01:48]}  bxa4 {[%clk 0:00:48]} 34. Nxa4 {[%clk 0:01:17]}  exd4+ {[%clk 0:00:44]} 35. exd4 {[%clk 0:01:17]}  Kc6 {[%clk 0:00:38]} 36. Nc5 {[%clk 0:01:17]}  Kb6 {[%clk 0:00:36]} 37. Bf3 {[%clk 0:01:16]}  a5 {[%clk 0:00:28]} 38. bxa5+ {[%clk 0:01:13]}  Kxa5 {[%clk 0:00:28]} 39. Bxd5 {[%clk 0:01:13]}  Kb5 {[%clk 0:00:28]} 40. Kd3 {[%clk 0:01:11]}  Nc6 {[%clk 0:00:22]} 41. Bxc6+ {[%clk 0:01:08]}  Kxc6 {[%clk 0:00:22]} 42. Ke4 {[%clk 0:01:05]}  Kd6 {[%clk 0:00:23]} 43. g3 {[%clk 0:01:05]}  Bh3 {[%clk 0:00:20]} 44. Nd3 {[%clk 0:00:57]}  Bg2+ {[%clk 0:00:19]} 45. f3 {[%clk 0:00:56]}  Bf1 {[%clk 0:00:19]} 46. Nf4 {[%clk 0:00:54]}  Bc4 {[%clk 0:00:17]} 47. Nh5 {[%clk 0:00:52]}  f5+ {[%clk 0:00:14]} 48. Kf4 {[%clk 0:00:44]}  g6 {[%clk 0:00:14]} 49. Nf6 {[%clk 0:00:44]}  h6 {[%clk 0:00:14]} 50. g4 {[%clk 0:00:38]}  Ke6 {[%clk 0:00:12]} 51. g5 {[%clk 0:00:38]}  h5 {[%clk 0:00:07]} 52. Ne8 {[%clk 0:00:26]}  Bb3 {[%clk 0:00:03]} 53. Nc7+ {[%clk 0:00:25]}  Kd6 {[%clk 0:00:04]} 54. Na6 {[%clk 0:00:24]}  Kd5 {[%clk 0:00:04]} 55. Ke3 {[%clk 0:00:24]}  f4+ {[%clk 0:00:03]} 56. Kd3 {[%clk 0:00:20]}  Bc4+ {[%clk 0:00:03]} 57. Kc3 {[%clk 0:00:12]}  Bxa6 {[%clk 0:00:04]} 58. h4 {[%clk 0:00:13]}  Bc8 {[%clk 0:00:04]} 59. Kd3 {[%clk 0:00:13]}  Bf5+ {[%clk 0:00:05]} 60. Kc3 {[%clk 0:00:13]}  Be6 {[%clk 0:00:06]} 61. Kd3 {[%clk 0:00:13]}  Bf5+ {[%clk 0:00:07]} 62. Kc3 {[%clk 0:00:14]}  Bd3 {[%clk 0:00:08]} 63. Kxd3 {[%clk 0:00:15]}  Kd6 {[%clk 0:00:08]} 64. Ke4 {[%clk 0:00:15]}  Ke6 {[%clk 0:00:09]} 65. d5+ {[%clk 0:00:15]}  Kd6 {[%clk 0:00:07]} 66. Kd4 {[%clk 0:00:15]} 1-0


[Site "https://www.chess.com"]

[Event "Titled Tuesday Blitz October 31 Late 2023"]
[White "Wanyama, Harold"]
[Black "Ashraf, Artin"]
[WhiteFideId "10000380"]
[BlackFideId "22514805"]
[WhiteElo "2461"]
[BlackElo "2846"]
[Result "0-1"]
[Round "2"]
[TimeControl "180+1"]
[Date "2023.10.31"]
[WhiteClock "0:00:00"]
[BlackClock "0:01:29"]
[Board "81"]

1. d4 {[%clk 0:02:52]}  f5 {[%clk 0:02:52]} 2. g3 {[%clk 0:02:50]}  Nf6 {[%clk 0:02:51]} 3. Bg2 {[%clk 0:02:50]}  g6 {[%clk 0:02:51]} 4. Nf3 {[%clk 0:02:47]}  Bg7 {[%clk 0:02:51]} 5. O-O {[%clk 0:02:48]}  O-O {[%clk 0:02:51]} 6. c4 {[%clk 0:02:47]}  d6 {[%clk 0:02:50]} 7. Nc3 {[%clk 0:02:46]}  Nbd7 {[%clk 0:02:50]} 8. Rb1 {[%clk 0:02:47]}  e5 {[%clk 0:02:49]} 9. dxe5 {[%clk 0:02:44]}  dxe5 {[%clk 0:02:48]} 10. Ng5 {[%clk 0:02:43]}  Nc5 {[%clk 0:02:40]} 11. b4 {[%clk 0:02:30]}  Na6 {[%clk 0:02:32]} 12. b5 {[%clk 0:02:23]}  Nc5 {[%clk 0:02:31]} 13. Ba3 {[%clk 0:02:22]}  Nfd7 {[%clk 0:02:23]} 14. Qd5+ {[%clk 0:02:16]}  Kh8 {[%clk 0:02:22]} 15. Nf7+ {[%clk 0:02:12]}  Rxf7 {[%clk 0:02:21]} 16. Qxf7 {[%clk 0:02:12]}  e4 {[%clk 0:02:19]} 17. Rfd1 {[%clk 0:02:02]}  Qf6 {[%clk 0:02:11]} 18. Qxf6 {[%clk 0:01:43]}  Bxf6 {[%clk 0:02:12]} 19. Nd5 {[%clk 0:01:42]}  Be5 {[%clk 0:02:13]} 20. Bb2 {[%clk 0:01:39]}  c6 {[%clk 0:02:11]} 21. bxc6 {[%clk 0:01:26]}  bxc6 {[%clk 0:02:11]} 22. Ne7 {[%clk 0:01:25]}  Ba6 {[%clk 0:02:10]} 23. Nxc6 {[%clk 0:01:18]}  Bxb2 {[%clk 0:02:09]} 24. Rxb2 {[%clk 0:01:18]}  Bxc4 {[%clk 0:02:10]} 25. Rbd2 {[%clk 0:01:14]}  Bb5 {[%clk 0:02:02]} 26. Nb4 {[%clk 0:01:10]}  Ba4 {[%clk 0:02:00]} 27. Rc1 {[%clk 0:01:08]}  Rb8 {[%clk 0:02:00]} 28. Nd5 {[%clk 0:01:05]}  Bc6 {[%clk 0:01:45]} 29. h4 {[%clk 0:01:02]}  Kg7 {[%clk 0:01:41]} 30. Nf4 {[%clk 0:01:00]}  Ba4 {[%clk 0:01:40]} 31. Rc4 {[%clk 0:00:53]}  Rb1+ {[%clk 0:01:37]} 32. Kh2 {[%clk 0:00:51]}  Ne5 {[%clk 0:01:36]} 33. Rxc5 {[%clk 0:00:26]}  Ng4+ {[%clk 0:01:36]} 34. Kh3 {[%clk 0:00:26]}  Nxf2+ {[%clk 0:01:37]} 35. Kh2 {[%clk 0:00:26]}  e3 {[%clk 0:01:31]} 36. Rc7+ {[%clk 0:00:00]}  Kh6 {[%clk 0:01:29]} 0-1


[Site "https://www.chess.com"]

[Event "Titled Tuesday Blitz October 31 Late 2023"]
[White "Taboas Rodriguez, Daniel"]
[Black "Lobanov, Sergei"]
[WhiteFideId "2208466"]
[BlackFideId "24183750"]
[WhiteElo "2470"]
[BlackElo "2818"]
[Result "0-1"]
[Round "2"]
[TimeControl "180+1"]
[Date "2023.10.31"]
[WhiteClock "0:00:00"]
[BlackClock "0:00:21"]
[Board "82"]

1. d4 {[%clk 0:02:59]}  Nf6 {[%clk 0:02:59]} 2. Nf3 {[%clk 0:02:58]}  d5 {[%clk 0:02:59]} 3. c4 {[%clk 0:02:59]}  e6 {[%clk 0:03:00]} 4. Nc3 {[%clk 0:02:59]}  Bb4 {[%clk 0:03:00]} 5. Bg5 {[%clk 0:02:57]}  h6 {[%clk 0:03:00]} 6. Bh4 {[%clk 0:02:56]}  Nbd7 {[%clk 0:02:53]} 7. e3 {[%clk 0:02:55]}  g5 {[%clk 0:02:52]} 8. Bg3 {[%clk 0:02:53]}  Ne4 {[%clk 0:02:53]} 9. Qc2 {[%clk 0:02:53]}  h5 {[%clk 0:02:46]} 10. cxd5 {[%clk 0:02:46]}  exd5 {[%clk 0:02:47]} 11. Bd3 {[%clk 0:02:41]}  h4 {[%clk 0:02:42]} 12. Bxe4 {[%clk 0:02:39]}  dxe4 {[%clk 0:02:17]} 13. Qxe4+ {[%clk 0:02:40]}  Kf8 {[%clk 0:02:17]} 14. Be5 {[%clk 0:02:37]}  f6 {[%clk 0:02:17]} 15. Qg6 {[%clk 0:01:58]}  Rg8 {[%clk 0:01:42]} 16. Qh6+ {[%clk 0:01:57]}  Kf7 {[%clk 0:01:42]} 17. O-O-O {[%clk 0:01:27]}  Bxc3 {[%clk 0:01:09]} 18. bxc3 {[%clk 0:01:28]}  Rg6 {[%clk 0:01:07]} 19. Qh7+ {[%clk 0:01:20]}  Rg7 {[%clk 0:01:06]} 20. Nxg5+ {[%clk 0:01:15]}  fxg5 {[%clk 0:00:59]} 21. Qxg7+ {[%clk 0:01:15]}  Ke6 {[%clk 0:00:59]} 22. Qg6+ {[%clk 0:01:09]}  Kd5 {[%clk 0:00:59]} 23. e4+ {[%clk 0:00:58]}  Kc4 {[%clk 0:00:57]} 24. Qe6+ {[%clk 0:00:58]}  Kb5 {[%clk 0:00:55]} 25. Qb3+ {[%clk 0:00:46]}  Ka6 {[%clk 0:00:52]} 26. Qa4+ {[%clk 0:00:46]}  Kb6 {[%clk 0:00:53]} 27. Kc2 {[%clk 0:00:46]}  a6 {[%clk 0:00:53]} 28. Qc4 {[%clk 0:00:35]}  c6 {[%clk 0:00:47]} 29. Rb1+ {[%clk 0:00:31]}  Ka7 {[%clk 0:00:48]} 30. Bd6 {[%clk 0:00:31]}  Qf6 {[%clk 0:00:47]} 31. Bc5+ {[%clk 0:00:27]}  b6 {[%clk 0:00:48]} 32. Ba3 {[%clk 0:00:16]}  Qxf2+ {[%clk 0:00:48]} 33. Kb3 {[%clk 0:00:15]}  Bb7 {[%clk 0:00:22]} 34. Rhf1 {[%clk 0:00:15]}  Qxg2 {[%clk 0:00:22]} 35. Rf7 {[%clk 0:00:16]}  Rd8 {[%clk 0:00:23]} 36. Be7 {[%clk 0:00:15]}  Re8 {[%clk 0:00:22]} 37. e5 {[%clk 0:00:00]}  c5 {[%clk 0:00:21]} 0-1


[Site "https://www.chess.com"]

[Event "Titled Tuesday Blitz October 31 Late 2023"]
[White "Eljanov, Pavel"]
[Black "Yeritsyan, Hayk"]
[WhiteFideId "14102951"]
[BlackFideId "13307320"]
[WhiteElo "2813"]
[BlackElo "2442"]
[Result "1-0"]
[Round "2"]
[TimeControl "180+1"]
[Date "2023.10.31"]
[WhiteClock "0:02:45"]
[BlackClock "0:01:52"]
[Board "83"]

1. d4 {[%clk 0:03:00]}  d5 {[%clk 0:02:59]} 2. Nf3 {[%clk 0:03:00]}  Nf6 {[%clk 0:02:58]} 3. Bf4 {[%clk 0:03:00]}  c5 {[%clk 0:02:57]} 4. e3 {[%clk 0:03:01]}  cxd4 {[%clk 0:02:57]} 5. exd4 {[%clk 0:03:01]}  Nc6 {[%clk 0:02:58]} 6. c3 {[%clk 0:03:00]}  Bg4 {[%clk 0:02:58]} 7. Nbd2 {[%clk 0:02:58]}  e6 {[%clk 0:02:53]} 8. Qb3 {[%clk 0:02:58]}  Bxf3 {[%clk 0:02:51]} 9. Qxb7 {[%clk 0:02:50]}  Qc8 {[%clk 0:02:19]} 10. Qxc8+ {[%clk 0:02:46]}  Rxc8 {[%clk 0:02:20]} 11. Nxf3 {[%clk 0:02:46]}  Ne4 {[%clk 0:02:13]} 12. Ba6 {[%clk 0:02:45]}  Rd8 {[%clk 0:01:52]} 13. Bb5 {[%clk 0:02:45]} 1-0


[Site "https://www.chess.com"]

[Event "Titled Tuesday Blitz October 31 Late 2023"]
[White "Mekhitarian, Krikor Sevag"]
[Black "Musovic, Armin"]
[WhiteFideId "2107660"]
[BlackFideId "939935"]
[WhiteElo "2769"]
[BlackElo "2460"]
[Result "1-0"]
[Round "2"]
[TimeControl "180+1"]
[Date "2023.10.31"]
[WhiteClock "0:01:19"]
[BlackClock "0:00:37"]
[Board "84"]

1. Nf3 {[%clk 0:03:00]}  d5 {[%clk 0:02:49]} 2. c4 {[%clk 0:03:00]}  d4 {[%clk 0:02:50]} 3. b4 {[%clk 0:03:00]}  a5 {[%clk 0:02:49]} 4. Bb2 {[%clk 0:02:40]}  axb4 {[%clk 0:02:49]} 5. Bxd4 {[%clk 0:02:40]}  Nc6 {[%clk 0:02:46]} 6. Bb2 {[%clk 0:02:40]}  e5 {[%clk 0:02:45]} 7. Nxe5 {[%clk 0:02:37]}  Nxe5 {[%clk 0:02:44]} 8. Bxe5 {[%clk 0:02:38]}  Nf6 {[%clk 0:02:42]} 9. e3 {[%clk 0:02:30]}  Bf5 {[%clk 0:02:31]} 10. d4 {[%clk 0:02:24]}  c5 {[%clk 0:02:22]} 11. d5 {[%clk 0:02:20]}  Bd6 {[%clk 0:02:20]} 12. Bb2 {[%clk 0:02:20]}  O-O {[%clk 0:02:17]} 13. Bd3 {[%clk 0:02:20]}  Bg4 {[%clk 0:02:13]} 14. Qc2 {[%clk 0:02:18]}  Re8 {[%clk 0:02:11]} 15. Nd2 {[%clk 0:02:15]}  Be5 {[%clk 0:02:02]} 16. Bxe5 {[%clk 0:02:00]}  Rxe5 {[%clk 0:02:03]} 17. O-O {[%clk 0:02:00]}  b6 {[%clk 0:01:59]} 18. e4 {[%clk 0:01:59]}  Ra3 {[%clk 0:01:57]} 19. f4 {[%clk 0:01:56]}  Rh5 {[%clk 0:01:52]} 20. Nb3 {[%clk 0:01:50]}  Qa8 {[%clk 0:01:36]} 21. e5 {[%clk 0:01:41]}  Nd7 {[%clk 0:01:17]} 22. Rf2 {[%clk 0:01:40]}  Nf8 {[%clk 0:01:11]} 23. Re1 {[%clk 0:01:39]}  Qa4 {[%clk 0:01:04]} 24. f5 {[%clk 0:01:37]}  Rg5 {[%clk 0:01:00]} 25. e6 {[%clk 0:01:30]}  fxe6 {[%clk 0:00:51]} 26. fxe6 {[%clk 0:01:31]}  Qe8 {[%clk 0:00:45]} 27. Ref1 {[%clk 0:01:22]}  Nxe6 {[%clk 0:00:39]} 28. dxe6 {[%clk 0:01:19]}  Bxe6 {[%clk 0:00:37]} 29. Bxh7+ {[%clk 0:01:19]} 1-0


[Site "https://www.chess.com"]

[Event "Titled Tuesday Blitz October 31 Late 2023"]
[White "Nikolova, Adriana"]
[Black "Tokhirjonova, Gulrukhbegim"]
[WhiteFideId "2908689"]
[BlackFideId "14203626"]
[WhiteElo "2399"]
[BlackElo "2703"]
[Result "0-1"]
[Round "2"]
[TimeControl "180+1"]
[Date "2023.10.31"]
[WhiteClock "0:00:04"]
[BlackClock "0:00:13"]
[Board "85"]

1. d4 {[%clk 0:03:00]}  Nf6 {[%clk 0:02:59]} 2. Bf4 {[%clk 0:03:00]}  e6 {[%clk 0:02:49]} 3. e3 {[%clk 0:02:59]}  d5 {[%clk 0:02:49]} 4. Nf3 {[%clk 0:02:58]}  Bd6 {[%clk 0:02:49]} 5. Bg3 {[%clk 0:02:59]}  Ne4 {[%clk 0:02:48]} 6. Nbd2 {[%clk 0:02:56]}  O-O {[%clk 0:02:45]} 7. Bd3 {[%clk 0:02:52]}  f5 {[%clk 0:02:45]} 8. Ne5 {[%clk 0:02:48]}  Nd7 {[%clk 0:02:41]} 9. f4 {[%clk 0:02:22]}  c5 {[%clk 0:02:35]} 10. c3 {[%clk 0:02:19]}  Nxe5 {[%clk 0:02:24]} 11. Bxe4 {[%clk 0:01:40]}  Ng4 {[%clk 0:02:18]} 12. Bb1 {[%clk 0:01:04]}  Nxe3 {[%clk 0:02:15]} 13. Qe2 {[%clk 0:01:03]}  cxd4 {[%clk 0:02:13]} 14. cxd4 {[%clk 0:01:04]}  Ng4 {[%clk 0:02:13]} 15. O-O {[%clk 0:00:59]}  Qb6 {[%clk 0:02:10]} 16. Nf3 {[%clk 0:00:48]}  Bd7 {[%clk 0:02:09]} 17. a4 {[%clk 0:00:45]}  Rac8 {[%clk 0:02:05]} 18. h3 {[%clk 0:00:45]}  Nf6 {[%clk 0:02:04]} 19. Kh1 {[%clk 0:00:40]}  Nh5 {[%clk 0:02:00]} 20. Bh2 {[%clk 0:00:23]}  Bxf4 {[%clk 0:02:00]} 21. Ne5 {[%clk 0:00:16]}  Bxe5 {[%clk 0:01:35]} 22. Bxe5 {[%clk 0:00:06]}  Nf6 {[%clk 0:01:33]} 23. Bd3 {[%clk 0:00:04]}  Be8 {[%clk 0:01:30]} 24. Rae1 {[%clk 0:00:03]}  Bh5 {[%clk 0:01:30]} 25. Qd2 {[%clk 0:00:04]}  Bg6 {[%clk 0:01:08]} 26. a5 {[%clk 0:00:04]}  Qd8 {[%clk 0:01:02]} 27. Bb1 {[%clk 0:00:04]}  Rc6 {[%clk 0:01:02]} 28. Rf3 {[%clk 0:00:04]}  Nh5 {[%clk 0:00:48]} 29. Rb3 {[%clk 0:00:04]}  b6 {[%clk 0:00:45]} 30. Kh2 {[%clk 0:00:04]}  f4 {[%clk 0:00:42]} 31. Bxg6 {[%clk 0:00:03]}  hxg6 {[%clk 0:00:42]} 32. Qd3 {[%clk 0:00:04]}  Qg5 {[%clk 0:00:40]} 33. Qf3 {[%clk 0:00:04]}  Kh7 {[%clk 0:00:29]} 34. axb6 {[%clk 0:00:03]}  axb6 {[%clk 0:00:28]} 35. Rc3 {[%clk 0:00:04]}  Rxc3 {[%clk 0:00:27]} 36. bxc3 {[%clk 0:00:05]}  Ra8 {[%clk 0:00:26]} 37. Rb1 {[%clk 0:00:04]}  Ra6 {[%clk 0:00:15]} 38. Qg4 {[%clk 0:00:05]}  Qf5 {[%clk 0:00:11]} 39. Qxf5 {[%clk 0:00:04]}  gxf5 {[%clk 0:00:11]} 40. h4 {[%clk 0:00:04]}  Kh6 {[%clk 0:00:11]} 41. Kh3 {[%clk 0:00:05]}  g5 {[%clk 0:00:10]} 42. hxg5+ {[%clk 0:00:05]}  Kxg5 {[%clk 0:00:11]} 43. Kh2 {[%clk 0:00:05]}  Ng3 {[%clk 0:00:11]} 44. Bc7 {[%clk 0:00:04]}  Ra2 {[%clk 0:00:11]} 45. Bd8+ {[%clk 0:00:04]}  Kg4 {[%clk 0:00:11]} 46. Bc7 {[%clk 0:00:05]}  Ne2 {[%clk 0:00:10]} 47. Kh1 {[%clk 0:00:05]}  f3 {[%clk 0:00:10]} 48. gxf3+ {[%clk 0:00:05]}  Kxf3 {[%clk 0:00:11]} 49. Rf1+ {[%clk 0:00:05]}  Ke3 {[%clk 0:00:11]} 50. Re1 {[%clk 0:00:03]}  f4 {[%clk 0:00:12]} 51. Rf1 {[%clk 0:00:03]}  Ng3+ {[%clk 0:00:11]} 52. Kg1 {[%clk 0:00:03]}  Nxf1 {[%clk 0:00:12]} 53. Kxf1 {[%clk 0:00:04]}  f3 {[%clk 0:00:13]} 54. Kg1 {[%clk 0:00:04]}  Ra1+ {[%clk 0:00:13]} 55. Kh2 {[%clk 0:00:05]}  f2 {[%clk 0:00:13]} 56. Bg3 {[%clk 0:00:04]}  f1=Q {[%clk 0:00:13]} 57. c4 {[%clk 0:00:04]}  Qh1# {[%clk 0:00:13]} 0-1


[Site "https://www.chess.com"]

[Event "Titled Tuesday Blitz October 31 Late 2023"]
[White "Piesik, Piotr"]
[Black "Bokros, Albert"]
[WhiteFideId "1136194"]
[BlackFideId "710458"]
[WhiteElo "2648"]
[BlackElo "2345"]
[Result "1-0"]
[Round "2"]
[TimeControl "180+1"]
[Date "2023.10.31"]
[WhiteClock "0:01:27"]
[BlackClock "0:00:16"]
[Board "87"]

1. Nf3 {[%clk 0:02:55]}  d5 {[%clk 0:02:59]} 2. g3 {[%clk 0:02:55]}  Bg4 {[%clk 0:02:58]} 3. Bg2 {[%clk 0:02:56]}  c6 {[%clk 0:02:59]} 4. O-O {[%clk 0:02:55]}  Nf6 {[%clk 0:02:59]} 5. d3 {[%clk 0:02:56]}  e6 {[%clk 0:02:56]} 6. Nbd2 {[%clk 0:02:57]}  Nbd7 {[%clk 0:02:54]} 7. e4 {[%clk 0:02:57]}  dxe4 {[%clk 0:02:54]} 8. dxe4 {[%clk 0:02:58]}  e5 {[%clk 0:02:53]} 9. h3 {[%clk 0:02:58]}  Bh5 {[%clk 0:02:53]} 10. Qe1 {[%clk 0:02:58]}  Bc5 {[%clk 0:02:51]} 11. Nh4 {[%clk 0:02:57]}  Bg6 {[%clk 0:02:47]} 12. Nf5 {[%clk 0:02:54]}  Bxf5 {[%clk 0:02:21]} 13. exf5 {[%clk 0:02:55]}  O-O {[%clk 0:02:20]} 14. Nb3 {[%clk 0:02:54]}  Bb6 {[%clk 0:02:19]} 15. a4 {[%clk 0:02:55]}  a5 {[%clk 0:02:17]} 16. Be3 {[%clk 0:02:54]}  Re8 {[%clk 0:02:05]} 17. Rd1 {[%clk 0:02:52]}  Bxe3 {[%clk 0:02:02]} 18. Qxe3 {[%clk 0:02:51]}  Qb6 {[%clk 0:02:01]} 19. Qxb6 {[%clk 0:02:49]}  Nxb6 {[%clk 0:02:02]} 20. Nc5 {[%clk 0:02:49]}  Rab8 {[%clk 0:01:54]} 21. g4 {[%clk 0:02:42]}  Nfd5 {[%clk 0:01:43]} 22. Rfe1 {[%clk 0:02:39]}  f6 {[%clk 0:01:34]} 23. b3 {[%clk 0:02:36]}  Nf4 {[%clk 0:01:32]} 24. Rd6 {[%clk 0:02:19]}  Nxg2 {[%clk 0:01:32]} 25. Kxg2 {[%clk 0:02:19]}  Nd5 {[%clk 0:01:30]} 26. c4 {[%clk 0:02:18]}  Nf4+ {[%clk 0:01:30]} 27. Kg3 {[%clk 0:02:17]}  Red8 {[%clk 0:01:17]} 28. Rxd8+ {[%clk 0:02:07]}  Rxd8 {[%clk 0:01:16]} 29. Nxb7 {[%clk 0:02:08]}  Rd3+ {[%clk 0:01:16]} 30. Re3 {[%clk 0:02:08]}  Rd1 {[%clk 0:00:46]} 31. Nxa5 {[%clk 0:02:08]}  Rg1+ {[%clk 0:00:46]} 32. Kh2 {[%clk 0:02:08]}  Rg2+ {[%clk 0:00:46]} 33. Kh1 {[%clk 0:02:09]}  Rxf2 {[%clk 0:00:45]} 34. Nxc6 {[%clk 0:02:09]}  Rb2 {[%clk 0:00:39]} 35. a5 {[%clk 0:02:03]}  h5 {[%clk 0:00:36]} 36. gxh5 {[%clk 0:01:54]}  Rb1+ {[%clk 0:00:34]} 37. Kh2 {[%clk 0:01:53]}  Rb2+ {[%clk 0:00:34]} 38. Kg1 {[%clk 0:01:53]}  Rb1+ {[%clk 0:00:32]} 39. Kf2 {[%clk 0:01:53]}  Rb2+ {[%clk 0:00:32]} 40. Kf3 {[%clk 0:01:52]}  Ng2 {[%clk 0:00:31]} 41. Rc3 {[%clk 0:01:46]}  Nh4+ {[%clk 0:00:31]} 42. Ke4 {[%clk 0:01:46]}  Re2+ {[%clk 0:00:31]} 43. Kd5 {[%clk 0:01:47]}  Nxf5 {[%clk 0:00:30]} 44. a6 {[%clk 0:01:47]}  Ra2 {[%clk 0:00:27]} 45. a7 {[%clk 0:01:42]}  Kf7 {[%clk 0:00:28]} 46. b4 {[%clk 0:01:38]}  Ne7+ {[%clk 0:00:28]} 47. Nxe7 {[%clk 0:01:36]}  Kxe7 {[%clk 0:00:29]} 48. b5 {[%clk 0:01:35]}  Rxa7 {[%clk 0:00:29]} 49. b6 {[%clk 0:01:35]}  Rd7+ {[%clk 0:00:21]} 50. Kc6 {[%clk 0:01:35]}  Rd6+ {[%clk 0:00:21]} 51. Kb5 {[%clk 0:01:35]}  Kd7 {[%clk 0:00:20]} 52. c5 {[%clk 0:01:34]}  Rd5 {[%clk 0:00:20]} 53. Ka6 {[%clk 0:01:33]}  Kc6 {[%clk 0:00:19]} 54. b7 {[%clk 0:01:31]}  Rd8 {[%clk 0:00:20]} 55. Ka7 {[%clk 0:01:28]}  Rd7 {[%clk 0:00:19]} 56. Rb3 {[%clk 0:01:28]}  Kxc5 {[%clk 0:00:19]} 57. Ka8 {[%clk 0:01:28]}  e4 {[%clk 0:00:16]} 58. b8=Q {[%clk 0:01:27]} 1-0


[Site "https://www.chess.com"]